[Event "*** SCC Grand Prix: Titled Tuesday Blitz"]
[Site "Chess.com"]
[Date "2020.06.02"]
[Round "5"]
[White "MirMan90"]
[Black "rubhani"]
[Result "0-1"]
[WhiteElo "2718"]
[BlackElo "2581"]
[TimeControl "180+1"]
[EndTime "10:58:46 PDT"]
[Termination "rubhani won by resignation"]

1. e4 {[%clk 0:03:00.9]} 1... c5 {[%clk 0:02:59.3]} 2. Nf3 {[%clk 0:03:00.4]}
2... d6 {[%clk 0:02:59.5]} 3. c3 {[%clk 0:03:00.4]} 3... Nf6 {[%clk 0:02:59.1]}
4. Be2 {[%clk 0:02:59.6]} 4... Nbd7 {[%clk 0:02:58.1]} 5. d3 {[%clk 0:02:58.6]}
5... g6 {[%clk 0:02:58.1]} 6. O-O {[%clk 0:02:57.1]} 6... Bg7 {[%clk 0:02:58.7]}
7. Re1 {[%clk 0:02:56]} 7... O-O {[%clk 0:02:58.6]} 8. Nbd2 {[%clk 0:02:53.2]}
8... e5 {[%clk 0:02:50]} 9. a4 {[%clk 0:02:52.8]} 9... b6 {[%clk 0:02:48.5]} 10.
b4 {[%clk 0:02:49.2]} 10... Bb7 {[%clk 0:02:33.2]} 11. Bb2 {[%clk 0:02:37.9]}
11... Re8 {[%clk 0:02:32.6]} 12. Qb3 {[%clk 0:02:36.2]} 12... Qc7 {[%clk
0:02:30.1]} 13. Bf1 {[%clk 0:02:32.7]} 13... d5 {[%clk 0:02:05.7]} 14. exd5
{[%clk 0:02:17.9]} 14... Nxd5 {[%clk 0:02:06.6]} 15. b5 {[%clk 0:02:15.6]} 15...
Nf4 {[%clk 0:01:42.2]} 16. g3 {[%clk 0:01:42.5]} 16... Ne6 {[%clk 0:01:23.2]}
17. Bg2 {[%clk 0:01:42.6]} 17... Rad8 {[%clk 0:01:20.3]} 18. Nc4 {[%clk
0:01:31.6]} 18... Bd5 {[%clk 0:01:12.1]} 19. Nfd2 {[%clk 0:01:03.1]} 19... Bxg2
{[%clk 0:01:11.1]} 20. Kxg2 {[%clk 0:01:03.4]} 20... Qb7+ {[%clk 0:01:11.7]} 21.
Ne4 {[%clk 0:00:51.9]} 21... Qd5 {[%clk 0:00:46]} 22. Nd2 {[%clk 0:00:40.7]}
22... Qxb3 {[%clk 0:00:38]} 23. Nxb3 {[%clk 0:00:41.6]} 23... f5 {[%clk
0:00:35.2]} 24. Nd6 {[%clk 0:00:40.3]} 24... Re7 {[%clk 0:00:34.7]} 25. a5
{[%clk 0:00:34.3]} 25... bxa5 {[%clk 0:00:27.3]} 26. Nxa5 {[%clk 0:00:32.2]}
26... Nb6 {[%clk 0:00:27.5]} 27. Nc6 {[%clk 0:00:31.6]} 27... Rxd6 {[%clk
0:00:27.6]} 28. Nxe7+ {[%clk 0:00:31.2]} 28... Kf8 {[%clk 0:00:26.7]} 29. Rxa7
{[%clk 0:00:29.5]} 29... Rxd3 {[%clk 0:00:25.1]} 30. Rb7 {[%clk 0:00:22.3]}
30... Nc4 {[%clk 0:00:25.1]} 31. Bc1 {[%clk 0:00:19.3]} 31... e4 {[%clk
0:00:24.4]} 32. Be3 {[%clk 0:00:16.8]} 32... Bxc3 {[%clk 0:00:23.8]} 33. Re2
{[%clk 0:00:16.2]} 33... Nd4 {[%clk 0:00:23.1]} 34. Bxd4 {[%clk 0:00:16.2]}
34... cxd4 {[%clk 0:00:23.1]} 35. Ra2 {[%clk 0:00:16.4]} 35... Na5 {[%clk
0:00:18.9]} 36. Nc6 {[%clk 0:00:14.6]} 36... Nxb7 {[%clk 0:00:18.4]} 37. Ra8+
{[%clk 0:00:13]} 37... Kf7 {[%clk 0:00:18.1]} 38. Ra7 {[%clk 0:00:12.9]} 38...
Ke6 {[%clk 0:00:18.3]} 39. Rxb7 {[%clk 0:00:12.7]} 39... Rd2 {[%clk 0:00:18]}
40. b6 {[%clk 0:00:11.5]} 40... Rb2 {[%clk 0:00:18.2]} 41. Re7+ {[%clk 0:00:11]}
41... Kd6 {[%clk 0:00:18.4]} 42. b7 {[%clk 0:00:10.6]} 42... Kxc6 {[%clk
0:00:18.2]} 43. Kf1 {[%clk 0:00:08.2]} 43... Rxb7 {[%clk 0:00:17.4]} 0-1

[Event "*** SCC Grand Prix: Titled Tuesday Blitz"]
[Site "Chess.com"]
[Date "2020.06.02"]
[Round "5"]
[White "m_ezat"]
[Black "abhidabhi"]
[Result "0-1"]
[WhiteElo "2542"]
[BlackElo "2720"]
[TimeControl "180+1"]
[EndTime "10:58:47 PDT"]
[Termination "abhidabhi won on time"]

1. d4 {[%clk 0:02:37.9]} 1... Nf6 {[%clk 0:02:58.5]} 2. c4 {[%clk 0:02:37.4]}
2... g6 {[%clk 0:02:58.5]} 3. Nc3 {[%clk 0:02:37.1]} 3... d5 {[%clk 0:02:59]} 4.
Bg5 {[%clk 0:02:34.8]} 4... Ne4 {[%clk 0:02:56.9]} 5. cxd5 {[%clk 0:02:33.5]}
5... Nxg5 {[%clk 0:02:52.2]} 6. h4 {[%clk 0:02:31.3]} 6... Ne4 {[%clk
0:02:49.5]} 7. Nxe4 {[%clk 0:02:31.3]} 7... Qxd5 {[%clk 0:02:49.6]} 8. Qd3
{[%clk 0:02:31.1]} 8... Bg7 {[%clk 0:02:47.6]} 9. Nf3 {[%clk 0:02:29.9]} 9...
Bf5 {[%clk 0:02:44.1]} 10. Nc3 {[%clk 0:02:29.4]} 10... Qd8 {[%clk 0:02:32.9]}
11. Qb5+ {[%clk 0:02:19.6]} 11... Nd7 {[%clk 0:02:17]} 12. e4 {[%clk 0:01:46.2]}
12... Bg4 {[%clk 0:02:13]} 13. Ne5 {[%clk 0:01:45.6]} 13... Bxe5 {[%clk
0:02:09.2]} 14. dxe5 {[%clk 0:01:40.1]} 14... c6 {[%clk 0:02:05.3]} 15. Qxb7
{[%clk 0:01:37.7]} 15... Nxe5 {[%clk 0:01:56.8]} 16. f3 {[%clk 0:01:20.8]} 16...
Rb8 {[%clk 0:01:43.3]} 17. Qxa7 {[%clk 0:01:16.7]} 17... Bxf3 {[%clk 0:01:27.2]}
18. gxf3 {[%clk 0:01:12.6]} 18... Rxb2 {[%clk 0:01:26.5]} 19. Be2 {[%clk
0:00:39.3]} 19... Qd2+ {[%clk 0:01:26.1]} 20. Kf1 {[%clk 0:00:39.3]} 20... O-O
{[%clk 0:01:24.6]} 21. Qc5 {[%clk 0:00:34.9]} 21... Qf4 {[%clk 0:01:11.8]} 22.
Qf2 {[%clk 0:00:27.4]} 22... Rd8 {[%clk 0:01:09]} 23. Rd1 {[%clk 0:00:22.5]}
23... Rxd1+ {[%clk 0:00:52.8]} 24. Nxd1 {[%clk 0:00:22.4]} 24... Rxa2 {[%clk
0:00:48.2]} 25. h5 {[%clk 0:00:22.9]} 25... Nd3 {[%clk 0:00:41.8]} 26. Qd4
{[%clk 0:00:22]} 26... Ne5 {[%clk 0:00:23.6]} 27. Qd8+ {[%clk 0:00:19.5]} 27...
Kg7 {[%clk 0:00:23.8]} 28. h6+ {[%clk 0:00:16]} 28... Kf6 {[%clk 0:00:24.2]} 29.
Qd4 {[%clk 0:00:16]} 29... Rd2 {[%clk 0:00:22.8]} 30. Qc3 {[%clk 0:00:15.2]}
30... Ke6 {[%clk 0:00:20.3]} 31. Ne3 {[%clk 0:00:13]} 31... Rxe2 {[%clk
0:00:20.2]} 32. Qb3+ {[%clk 0:00:06.8]} 32... Kf6 {[%clk 0:00:19.1]} 33. Kxe2
{[%clk 0:00:01.7]} 33... Qxf3+ {[%clk 0:00:18.9]} 34. Kd2 {[%clk 0:00:02.4]}
34... Qxh1 {[%clk 0:00:18.2]} 35. Qc3 {[%clk 0:00:03.3]} 35... Qh2+ {[%clk
0:00:17.2]} 36. Kc1 {[%clk 0:00:03.9]} 36... Qg1+ {[%clk 0:00:17.3]} 37. Kb2
{[%clk 0:00:04.5]} 37... Qxe3 {[%clk 0:00:16.8]} 38. Qxe3 {[%clk 0:00:04.1]}
38... Nc4+ {[%clk 0:00:16.9]} 0-1

[Event "*** SCC Grand Prix: Titled Tuesday Blitz"]
[Site "Chess.com"]
[Date "2020.06.02"]
[Round "5"]
[White "Munkhzul_Turmunkh"]
[Black "Jospem"]
[Result "1-0"]
[WhiteElo "2593"]
[BlackElo "2860"]
[TimeControl "180+1"]
[EndTime "10:58:48 PDT"]
[Termination "Munkhzul_Turmunkh won by resignation"]

1. e4 {[%clk 0:03:00.9]} 1... c5 {[%clk 0:03:00.2]} 2. Nf3 {[%clk 0:03:00.1]}
2... d6 {[%clk 0:03:00.9]} 3. d4 {[%clk 0:02:58.3]} 3... cxd4 {[%clk 0:03:01.8]}
4. Nxd4 {[%clk 0:02:58.8]} 4... a6 {[%clk 0:03:02.7]} 5. Be3 {[%clk 0:02:42.6]}
5... e6 {[%clk 0:03:02.6]} 6. c4 {[%clk 0:02:36.3]} 6... b6 {[%clk 0:03:02.8]}
7. Nc3 {[%clk 0:02:33.4]} 7... Bb7 {[%clk 0:03:03.4]} 8. Be2 {[%clk 0:02:26.8]}
8... Nf6 {[%clk 0:03:03.5]} 9. f3 {[%clk 0:02:24.3]} 9... Nbd7 {[%clk
0:03:03.9]} 10. O-O {[%clk 0:02:23]} 10... Be7 {[%clk 0:03:04.5]} 11. Rc1 {[%clk
0:02:17.6]} 11... O-O {[%clk 0:03:04.7]} 12. Qd2 {[%clk 0:02:12.5]} 12... Rc8
{[%clk 0:03:05.1]} 13. Rfd1 {[%clk 0:02:11.7]} 13... Qc7 {[%clk 0:02:58.8]} 14.
Qe1 {[%clk 0:02:09.3]} 14... Qb8 {[%clk 0:02:57.8]} 15. Qg3 {[%clk 0:01:56.5]}
15... Kh8 {[%clk 0:02:52.7]} 16. b4 {[%clk 0:01:51.8]} 16... Ne5 {[%clk
0:02:45.3]} 17. Na4 {[%clk 0:01:50.1]} 17... Nfd7 {[%clk 0:02:42]} 18. f4 {[%clk
0:01:46]} 18... Nc6 {[%clk 0:02:39.7]} 19. Nc2 {[%clk 0:01:43.5]} 19... Ba8
{[%clk 0:02:33.9]} 20. Qf2 {[%clk 0:01:36.1]} 20... b5 {[%clk 0:02:24.7]} 21.
cxb5 {[%clk 0:01:35.6]} 21... axb5 {[%clk 0:02:25.6]} 22. Nc3 {[%clk 0:01:31.1]}
22... Nf6 {[%clk 0:02:25.9]} 23. Bf3 {[%clk 0:01:23.1]} 23... Rfd8 {[%clk
0:01:55.2]} 24. Qe2 {[%clk 0:01:18.6]} 24... Na7 {[%clk 0:01:42.1]} 25. Nd4
{[%clk 0:01:13.7]} 25... d5 {[%clk 0:01:39.7]} 26. e5 {[%clk 0:01:12.2]} 26...
Ne4 {[%clk 0:01:36.9]} 27. Bxe4 {[%clk 0:01:09.5]} 27... dxe4 {[%clk 0:01:37.8]}
28. a3 {[%clk 0:01:09.6]} 28... Qb7 {[%clk 0:01:16.4]} 29. Ncxb5 {[%clk
0:01:01.4]} 29... Nxb5 {[%clk 0:00:54]} 30. Qxb5 {[%clk 0:01:02.3]} 30... Rxc1
{[%clk 0:00:53.2]} 31. Rxc1 {[%clk 0:00:43.4]} 31... Qa7 {[%clk 0:00:53.5]} 32.
a4 {[%clk 0:00:36.6]} 32... Bf8 {[%clk 0:00:32.9]} 33. Nf5 {[%clk 0:00:34.6]}
33... Qb7 {[%clk 0:00:19.5]} 34. Qxb7 {[%clk 0:00:34.3]} 34... Bxb7 {[%clk
0:00:20.4]} 35. Nd6 {[%clk 0:00:34.4]} 35... Bxd6 {[%clk 0:00:17.4]} 36. exd6
{[%clk 0:00:35.3]} 36... h6 {[%clk 0:00:13.9]} 37. Rc7 {[%clk 0:00:27.2]} 37...
Bd5 {[%clk 0:00:12.8]} 38. d7 {[%clk 0:00:25.9]} 38... Kh7 {[%clk 0:00:11.5]}
39. b5 {[%clk 0:00:25]} 39... g5 {[%clk 0:00:11.1]} 40. fxg5 {[%clk 0:00:23.6]}
40... Kg6 {[%clk 0:00:11.1]} 41. gxh6 {[%clk 0:00:22]} 41... f5 {[%clk 0:00:12]}
42. b6 {[%clk 0:00:18.3]} 42... e5 {[%clk 0:00:12.4]} 43. b7 {[%clk 0:00:17.7]}
43... f4 {[%clk 0:00:13]} 44. Ba7 {[%clk 0:00:17.4]} 44... e3 {[%clk 0:00:13.5]}
45. b8=Q {[%clk 0:00:15]} 45... e2 {[%clk 0:00:13.1]} 46. Kf2 {[%clk 0:00:14.2]}
1-0

[Event "*** SCC Grand Prix: Titled Tuesday Blitz"]
[Site "Chess.com"]
[Date "2020.06.02"]
[Round "5"]
[White "fridaywins"]
[Black "HouseOfDurin"]
[Result "1-0"]
[WhiteElo "2226"]
[BlackElo "1987"]
[TimeControl "180+1"]
[EndTime "10:58:48 PDT"]
[Termination "fridaywins won on time"]

1. e4 {[%clk 0:03:00.9]} 1... c5 {[%clk 0:03:00.5]} 2. Nf3 {[%clk 0:03:00.5]}
2... Nc6 {[%clk 0:03:01]} 3. Bb5 {[%clk 0:03:00.4]} 3... g6 {[%clk 0:03:00.5]}
4. Bxc6 {[%clk 0:03:00.3]} 4... bxc6 {[%clk 0:03:01.4]} 5. Nc3 {[%clk
0:03:00.9]} 5... Bg7 {[%clk 0:03:01.9]} 6. h3 {[%clk 0:03:01]} 6... e5 {[%clk
0:03:02.4]} 7. b3 {[%clk 0:02:57.2]} 7... Ne7 {[%clk 0:03:02.1]} 8. Bb2 {[%clk
0:02:46.2]} 8... O-O {[%clk 0:03:01.7]} 9. O-O {[%clk 0:02:43.9]} 9... h6 {[%clk
0:02:51.1]} 10. Na4 {[%clk 0:02:40.7]} 10... d6 {[%clk 0:02:51.1]} 11. Re1
{[%clk 0:02:31.5]} 11... Be6 {[%clk 0:02:50.9]} 12. c3 {[%clk 0:02:30.9]} 12...
c4 {[%clk 0:02:46.5]} 13. d4 {[%clk 0:02:28.1]} 13... cxb3 {[%clk 0:02:42.8]}
14. axb3 {[%clk 0:02:27.3]} 14... exd4 {[%clk 0:02:28]} 15. Nxd4 {[%clk
0:02:25.5]} 15... Bd7 {[%clk 0:01:48.7]} 16. c4 {[%clk 0:02:25.3]} 16... Rb8
{[%clk 0:01:27.1]} 17. c5 {[%clk 0:02:25.5]} 17... d5 {[%clk 0:01:21.9]} 18. e5
{[%clk 0:02:20.4]} 18... Nf5 {[%clk 0:01:07.6]} 19. e6 {[%clk 0:02:11]} 19...
Nxd4 {[%clk 0:00:44.9]} 20. e7 {[%clk 0:02:10.2]} 20... Qe8 {[%clk 0:00:16.2]}
21. Bxd4 {[%clk 0:02:07]} 21... Be6 {[%clk 0:00:09.4]} 22. Nc3 {[%clk 0:02:01]}
22... Qxe7 {[%clk 0:00:07.7]} 23. Bxg7 {[%clk 0:01:58.7]} 23... Kxg7 {[%clk
0:00:08.6]} 24. Qd4+ {[%clk 0:01:53.4]} 24... Qf6 {[%clk 0:00:08.9]} 25. Qxf6+
{[%clk 0:01:44]} 25... Kxf6 {[%clk 0:00:09.8]} 26. Ra3 {[%clk 0:01:44.2]} 26...
Rb7 {[%clk 0:00:08.8]} 27. Ne2 {[%clk 0:01:43.9]} 27... Rfb8 {[%clk 0:00:08]}
28. Nd4 {[%clk 0:01:44]} 28... Bd7 {[%clk 0:00:08]} 29. f4 {[%clk 0:01:43]}
29... Rb4 {[%clk 0:00:05.5]} 30. Nf3 {[%clk 0:01:35.8]} 30... Rxb3 {[%clk
0:00:04.4]} 31. Rxa7 {[%clk 0:01:35.9]} 31... Be6 {[%clk 0:00:03.4]} 32. Ne5
{[%clk 0:01:34.8]} 32... Rb1 {[%clk 0:00:03.3]} 33. Rxb1 {[%clk 0:01:33.2]}
33... Rxb1+ {[%clk 0:00:04.2]} 34. Kh2 {[%clk 0:01:33.7]} 34... Rc1 {[%clk
0:00:04.3]} 35. Ra5 {[%clk 0:01:29]} 35... Rf1 {[%clk 0:00:02.1]} 36. Kg3 {[%clk
0:01:27.8]} 36... d4 {[%clk 0:00:01.6]} 37. Nxc6 {[%clk 0:01:27.3]} 37... d3
{[%clk 0:00:01.8]} 38. Ra7 {[%clk 0:01:21.6]} 38... d2 {[%clk 0:00:01.7]} 39.
Ne5 {[%clk 0:01:09.3]} 39... d1=Q {[%clk 0:00:02.6]} 40. Nf3 {[%clk 0:01:07.3]}
40... Qe1+ {[%clk 0:00:03.5]} 41. Nxe1 {[%clk 0:01:06.9]} 41... Rxe1 {[%clk
0:00:04.4]} 42. c6 {[%clk 0:01:07.2]} 42... Rc1 {[%clk 0:00:04.9]} 43. c7 {[%clk
0:01:08.1]} 43... Rc6 {[%clk 0:00:04.7]} 44. Kf3 {[%clk 0:01:07.5]} 44... Bd5+
{[%clk 0:00:04.6]} 45. Kf2 {[%clk 0:01:07.2]} 45... Rc3 {[%clk 0:00:04.2]} 46.
g4 {[%clk 0:01:08.1]} 46... Rc2+ {[%clk 0:00:04.4]} 47. Ke3 {[%clk 0:01:07.6]}
47... Be6 {[%clk 0:00:04.6]} 48. Kd4 {[%clk 0:01:08.5]} 48... g5 {[%clk
0:00:03.2]} 49. f5 {[%clk 0:01:08.2]} 49... Bxf5 {[%clk 0:00:03.6]} 50. gxf5
{[%clk 0:01:07.7]} 50... Kxf5 {[%clk 0:00:04.5]} 51. c8=Q+ {[%clk 0:01:07.3]}
51... Rxc8 {[%clk 0:00:03]} 52. Rxf7+ {[%clk 0:01:08.2]} 52... Kg6 {[%clk
0:00:01.5]} 53. Ra7 {[%clk 0:01:07.3]} 53... Re8 {[%clk 0:00:01.9]} 54. Ra6+
{[%clk 0:01:05]} 54... Kh5 {[%clk 0:00:02]} 55. Kd3 {[%clk 0:01:04.9]} 55... Re7
{[%clk 0:00:01.8]} 56. Kd2 {[%clk 0:01:04.3]} 56... Re5 {[%clk 0:00:01.4]} 57.
Rb6 {[%clk 0:01:03]} 57... Re4 {[%clk 0:00:01.5]} 58. Rf6 {[%clk 0:00:59.5]}
58... Kh4 {[%clk 0:00:01.5]} 59. Rxh6+ {[%clk 0:00:59.1]} 59... Kg3 {[%clk
0:00:02.1]} 60. Rg6 {[%clk 0:01:00]} 60... Kh4 {[%clk 0:00:01.1]} 61. Kd3 {[%clk
0:00:59.2]} 1-0

[Event "*** SCC Grand Prix: Titled Tuesday Blitz"]
[Site "Chess.com"]
[Date "2020.06.02"]
[Round "5"]
[White "talaicito"]
[Black "profofchess"]
[Result "0-1"]
[WhiteElo "2129"]
[BlackElo "2452"]
[TimeControl "180+1"]
[EndTime "10:58:49 PDT"]
[Termination "profofchess won on time"]

1. d4 {[%clk 0:03:00.9]} 1... Nf6 {[%clk 0:02:59.7]} 2. Bf4 {[%clk 0:03:00.4]}
2... e6 {[%clk 0:02:54.5]} 3. Nc3 {[%clk 0:02:59.9]} 3... Bb4 {[%clk 0:02:42.4]}
4. Bd2 {[%clk 0:02:47.2]} 4... d5 {[%clk 0:02:33.4]} 5. a3 {[%clk 0:02:46.2]}
5... Bd6 {[%clk 0:02:31.6]} 6. Nf3 {[%clk 0:02:36.7]} 6... c6 {[%clk 0:02:30.1]}
7. Bg5 {[%clk 0:02:33.2]} 7... h6 {[%clk 0:02:28.3]} 8. Bxf6 {[%clk 0:02:31]}
8... Qxf6 {[%clk 0:02:27.4]} 9. e4 {[%clk 0:02:30.8]} 9... dxe4 {[%clk
0:02:15.5]} 10. Nxe4 {[%clk 0:02:31]} 10... Qe7 {[%clk 0:02:16.1]} 11. Nxd6+
{[%clk 0:02:31.2]} 11... Qxd6 {[%clk 0:02:16.7]} 12. Bd3 {[%clk 0:02:31.3]}
12... Nd7 {[%clk 0:02:14.7]} 13. O-O {[%clk 0:02:30.6]} 13... Nf6 {[%clk
0:02:13]} 14. Re1 {[%clk 0:02:26.5]} 14... O-O {[%clk 0:02:12.4]} 15. Qe2 {[%clk
0:02:21.7]} 15... b6 {[%clk 0:01:58.8]} 16. Rad1 {[%clk 0:02:20.1]} 16... Bb7
{[%clk 0:01:58.6]} 17. Ne5 {[%clk 0:01:54.7]} 17... c5 {[%clk 0:01:56.3]} 18.
dxc5 {[%clk 0:01:49.4]} 18... Qxc5 {[%clk 0:01:57.2]} 19. h3 {[%clk 0:01:30.7]}
19... Rad8 {[%clk 0:01:50.8]} 20. c3 {[%clk 0:01:19.5]} 20... a5 {[%clk
0:01:34.7]} 21. Bc2 {[%clk 0:01:12.8]} 21... b5 {[%clk 0:01:18.3]} 22. Bb3
{[%clk 0:00:50]} 22... Ne4 {[%clk 0:00:59.6]} 23. Nd7 {[%clk 0:00:37.4]} 23...
Qg5 {[%clk 0:00:53.7]} 24. Nxf8 {[%clk 0:00:22]} 24... Nxc3 {[%clk 0:00:38.2]}
25. Qg4 {[%clk 0:00:21.5]} 25... Qxg4 {[%clk 0:00:38.1]} 26. hxg4 {[%clk
0:00:21.3]} 26... Nxd1 {[%clk 0:00:37.5]} 27. Rxd1 {[%clk 0:00:20.2]} 27...
Rxd1+ {[%clk 0:00:36.5]} 28. Bxd1 {[%clk 0:00:19.4]} 28... Kxf8 {[%clk
0:00:37.4]} 29. Be2 {[%clk 0:00:19.8]} 29... b4 {[%clk 0:00:36.7]} 30. axb4
{[%clk 0:00:19.2]} 30... axb4 {[%clk 0:00:37.6]} 31. Bc4 {[%clk 0:00:18.9]}
31... Ke7 {[%clk 0:00:36.6]} 32. f3 {[%clk 0:00:19.1]} 32... Kd6 {[%clk
0:00:36.1]} 33. Kf2 {[%clk 0:00:19.5]} 33... Kc5 {[%clk 0:00:36.4]} 34. Bd3
{[%clk 0:00:12.3]} 34... Kd4 {[%clk 0:00:35.8]} 35. Bh7 {[%clk 0:00:12]} 35...
e5 {[%clk 0:00:33]} 36. Ke2 {[%clk 0:00:11.4]} 36... f6 {[%clk 0:00:30]} 37. Bf5
{[%clk 0:00:10.6]} 37... e4 {[%clk 0:00:29.6]} 38. Be6 {[%clk 0:00:08.9]} 38...
e3 {[%clk 0:00:25.7]} 39. Bf5 {[%clk 0:00:04.2]} 39... Ba6+ {[%clk 0:00:25.5]}
40. Ke1 {[%clk 0:00:04.5]} 40... Bc4 {[%clk 0:00:16.3]} 41. g3 {[%clk
0:00:03.1]} 41... Bd3 {[%clk 0:00:13.4]} 42. Be6 {[%clk 0:00:02.8]} 42... Bc4
{[%clk 0:00:11]} 43. Bf5 {[%clk 0:00:02.9]} 43... Bd5 {[%clk 0:00:10.8]} 44. f4
{[%clk 0:00:01.3]} 44... Bf3 {[%clk 0:00:08.9]} 0-1

[Event "*** SCC Grand Prix: Titled Tuesday Blitz"]
[Site "Chess.com"]
[Date "2020.06.02"]
[Round "5"]
[White "novocane"]
[Black "Shockerlover"]
[Result "1-0"]
[WhiteElo "2160"]
[BlackElo "1700"]
[TimeControl "180+1"]
[EndTime "10:58:49 PDT"]
[Termination "novocane won on time"]

1. d4 {[%clk 0:03:00.8]} 1... Nf6 {[%clk 0:02:58.9]} 2. c4 {[%clk 0:03:00.5]}
2... c6 {[%clk 0:02:43.1]} 3. Nf3 {[%clk 0:02:58.2]} 3... g6 {[%clk 0:02:41.7]}
4. Nc3 {[%clk 0:02:56.5]} 4... Bg7 {[%clk 0:02:42.6]} 5. e4 {[%clk 0:02:55.3]}
5... O-O {[%clk 0:02:40.4]} 6. Be2 {[%clk 0:02:54.4]} 6... d6 {[%clk 0:02:37.3]}
7. h3 {[%clk 0:02:52.5]} 7... a5 {[%clk 0:02:30.2]} 8. O-O {[%clk 0:02:51]} 8...
Na6 {[%clk 0:02:25.6]} 9. Be3 {[%clk 0:02:48.5]} 9... Nd7 {[%clk 0:02:14.7]} 10.
Qd2 {[%clk 0:02:46.2]} 10... e5 {[%clk 0:02:13.3]} 11. d5 {[%clk 0:02:45]} 11...
Ndc5 {[%clk 0:02:09.5]} 12. Bh6 {[%clk 0:02:42.7]} 12... f5 {[%clk 0:02:08]} 13.
Bxg7 {[%clk 0:02:39.2]} 13... Kxg7 {[%clk 0:02:07.4]} 14. dxc6 {[%clk
0:02:25.3]} 14... bxc6 {[%clk 0:02:06.4]} 15. Rad1 {[%clk 0:02:23]} 15... Rf6
{[%clk 0:02:02.1]} 16. Nxe5 {[%clk 0:02:19]} 16... fxe4 {[%clk 0:01:52.9]} 17.
Nxc6 {[%clk 0:01:59.3]} 17... Qe8 {[%clk 0:01:27.4]} 18. Nd4 {[%clk 0:01:46.7]}
18... Bb7 {[%clk 0:01:21.8]} 19. Ndb5 {[%clk 0:01:42]} 19... Rd8 {[%clk
0:01:08.7]} 20. Qe3 {[%clk 0:01:37.9]} 20... Qf7 {[%clk 0:00:52.2]} 21. Nd5
{[%clk 0:01:29]} 21... Rf5 {[%clk 0:00:41.3]} 22. Bg4 {[%clk 0:01:21.5]} 22...
Re5 {[%clk 0:00:38.5]} 23. Nbc3 {[%clk 0:01:11.1]} 23... Nb4 {[%clk 0:00:35.2]}
24. Be2 {[%clk 0:01:08.2]} 24... Nxd5 {[%clk 0:00:33.6]} 25. cxd5 {[%clk
0:01:07.2]} 25... Bxd5 {[%clk 0:00:28]} 26. Nxd5 {[%clk 0:01:05.8]} 26... Rxd5
{[%clk 0:00:28]} 27. Bc4 {[%clk 0:01:05.7]} 27... Rxd1 {[%clk 0:00:14.4]} 28.
Bxf7 {[%clk 0:01:04.6]} 28... Rxf1+ {[%clk 0:00:15.3]} 29. Kxf1 {[%clk
0:01:04.6]} 29... Kxf7 {[%clk 0:00:14.7]} 30. g3 {[%clk 0:00:53.9]} 30... Rb8
{[%clk 0:00:13.6]} 31. Qd4 {[%clk 0:00:47.8]} 31... Ke6 {[%clk 0:00:10]} 32. a3
{[%clk 0:00:44.8]} 32... Rb3 {[%clk 0:00:09]} 33. h4 {[%clk 0:00:40.8]} 33...
Rd3 {[%clk 0:00:08.7]} 34. Qg7 {[%clk 0:00:40.2]} 34... Rd1+ {[%clk 0:00:04.5]}
35. Ke2 {[%clk 0:00:35.9]} 35... Rd3 {[%clk 0:00:01.4]} 36. b4 {[%clk
0:00:35.4]} 1-0

[Event "*** SCC Grand Prix: Titled Tuesday Blitz"]
[Site "Chess.com"]
[Date "2020.06.02"]
[Round "5"]
[White "Malysch"]
[Black "Volodar_Murzin"]
[Result "1-0"]
[WhiteElo "2531"]
[BlackElo "2702"]
[TimeControl "180+1"]
[EndTime "10:58:50 PDT"]
[Termination "Malysch won on time"]

1. d4 {[%clk 0:03:00.9]} 1... Nf6 {[%clk 0:02:58.1]} 2. c4 {[%clk 0:03:00.7]}
2... g6 {[%clk 0:02:58.5]} 3. g3 {[%clk 0:03:00.2]} 3... Bg7 {[%clk 0:02:59]} 4.
Bg2 {[%clk 0:03:00.4]} 4... O-O {[%clk 0:02:59.9]} 5. Nf3 {[%clk 0:03:00.9]}
5... d6 {[%clk 0:02:59.5]} 6. O-O {[%clk 0:03:00.7]} 6... Nbd7 {[%clk 0:03:00]}
7. Nc3 {[%clk 0:03:00.7]} 7... e5 {[%clk 0:02:59.5]} 8. e4 {[%clk 0:03:01.2]}
8... exd4 {[%clk 0:02:58.1]} 9. Nxd4 {[%clk 0:03:02.1]} 9... Nc5 {[%clk
0:02:58.8]} 10. h3 {[%clk 0:03:01.2]} 10... Re8 {[%clk 0:02:58.3]} 11. Re1
{[%clk 0:03:01.3]} 11... Bd7 {[%clk 0:02:58.5]} 12. Bf4 {[%clk 0:02:58.1]} 12...
h5 {[%clk 0:02:39.4]} 13. Qd2 {[%clk 0:02:53.9]} 13... Ne6 {[%clk 0:02:37.5]}
14. Be3 {[%clk 0:02:52.6]} 14... a5 {[%clk 0:02:33.8]} 15. Rad1 {[%clk
0:02:51.2]} 15... Qc8 {[%clk 0:02:32.8]} 16. Kh2 {[%clk 0:02:47.2]} 16... Nc5
{[%clk 0:02:29.1]} 17. Qc2 {[%clk 0:02:44.4]} 17... a4 {[%clk 0:02:17.9]} 18. f4
{[%clk 0:02:41.4]} 18... Nh7 {[%clk 0:02:04.1]} 19. Bf2 {[%clk 0:02:39]} 19...
Nf8 {[%clk 0:02:01.5]} 20. Nd5 {[%clk 0:02:34]} 20... Ra6 {[%clk 0:01:47.1]} 21.
Nb5 {[%clk 0:02:30.3]} 21... Bxb5 {[%clk 0:00:33.7]} 22. cxb5 {[%clk 0:02:31.2]}
22... Ra5 {[%clk 0:00:34.2]} 23. Qc4 {[%clk 0:02:18.3]} 23... Nfd7 {[%clk
0:00:28.2]} 24. e5 {[%clk 0:02:12]} 24... c6 {[%clk 0:00:15.5]} 25. bxc6 {[%clk
0:01:57.5]} 25... bxc6 {[%clk 0:00:16.4]} 26. Nb4 {[%clk 0:01:23.5]} 26... d5
{[%clk 0:00:15.8]} 27. Qc3 {[%clk 0:01:07.4]} 27... Rb5 {[%clk 0:00:15.7]} 28.
Bf1 {[%clk 0:00:41.4]} 28... Qb7 {[%clk 0:00:08.2]} 29. Bxb5 {[%clk 0:00:37.3]}
29... Qxb5 {[%clk 0:00:09.1]} 30. a3 {[%clk 0:00:27.3]} 30... Bf8 {[%clk
0:00:06.8]} 31. Rc1 {[%clk 0:00:23.3]} 31... Re6 {[%clk 0:00:05.2]} 32. Red1
{[%clk 0:00:19.8]} 32... Ne4 {[%clk 0:00:04.7]} 33. Qf3 {[%clk 0:00:16.7]} 33...
Ndc5 {[%clk 0:00:03.1]} 34. Bxc5 {[%clk 0:00:10.9]} 34... Bxc5 {[%clk 0:00:04]}
35. Nd3 {[%clk 0:00:09.2]} 35... Bb6 {[%clk 0:00:03.4]} 36. f5 {[%clk
0:00:08.6]} 36... gxf5 {[%clk 0:00:02.5]} 37. Qxf5 {[%clk 0:00:09.5]} 37... Qb4
{[%clk 0:00:02.2]} 38. axb4 {[%clk 0:00:07.9]} 1-0